[Event "FIDE WTC Prel-B 2022"]
[Site "Jerusalem"]
[Date "2022.11.20"]
[Round "1.22"]
[White "Sindarov, Javokhir"]
[Black "Radjabov, Teimour"]
[Result "1/2-1/2"]
[ECO "C50"]
[WhiteElo "2654"]
[BlackElo "2747"]
[Annotator "TA"]
[PlyCount "108"]
[EventDate "2022.11.20"]
[EventType "team-tourn"]
[EventCountry "ISR"]
[SourceTitle "playchess.com"]
[Source "ChessBase"]
[SourceQuality "1"]
[WhiteTeam "Uzbekistan"]
[BlackTeam "Azerbaijan"]
[WhiteTeamCountry "UZB"]
[BlackTeamCountry "AZE"]
[TimeControl "2700+10"]

{[%evp 15,108,8,20,0,0,0,0,0,0,0,0,0,0,0,0,0,7,0,12,10,27,0,58,0,0,0,9,3,19,-2,-14,-4,-20,-35,-6,-17,0,0,0,0,0,0,0,0,0,0,6,6,8,8,8,8,8,8,8,0,0,0,8,0,8,8,8,8,8,8,8,8,8,10,23,8,8,8,8,0,0,0,0,0,0,0,0,-5663,0,0,0,0,0,0,0,0,0,0,0]} 1. e4 {[%emt 0:00:07]} e5 {[%emt 0:00:01]} 2. Nf3 {[%emt 0:00:02]} Nc6 {[%emt 0:00:00]} 3. Bc4 {[%emt 0:00:03]} Bc5 {[%emt 0:00:05]} 4. d3 {[%emt 0:00:06]} Nf6 {[%emt 0:00:18]} 5. Nc3 {[%emt 0:00:02]} h6 {[%emt 0:00:07]} 6. h3 {[%emt 0:00:12]} a6 {[%emt 0:00:37]} 7. O-O {[%emt 0:00:37] 7.Be3 is a critical line.} d6 {[%emt 0:00:36]} 8. a4 {[%emt 0:02:55]} O-O {[%emt 0:00:48]} 9. Be3 {[%emt 0:00:02] C50: Hungarian Defence and Giuoco Pianissimo.} Bxe3 {[%emt 0:01:01]} 10. fxe3 {[%emt 0:00:02]} Be6 {[%emt 0:00:03]} 11. Nd2 {[%emt 0:00:04] [#]} Nd7 $146 {[%emt 0:05:00]} ({Predecessor:} 11... Bxc4 12. Nxc4 d5 13. exd5 Nxd5 14. e4 Nf4 15. Kh2 Ng6 16. a5 Qd7 17. Nd5 Nce7 {1-0 (54) Alekseenko,K (2707)-Le,Q (2728) Chess.com INT 2022}) 12. a5 {[%emt 0:07:55]} Qg5 {[%emt 0:06:01][%csl LRe3,LRh3]} 13. Rf3 {[%emt 0:05:00]} Ne7 {[%emt 0:01:53]} 14. d4 {[%emt 0:04:17]} Bxc4 {[%emt 0:08:43]} 15. Nxc4 {[%emt 0:00:02]} Rae8 {[%emt 0:00:01]} 16. Qd3 {[%emt 0:03:53]} Qg6 {[%emt 0:10:54]} 17. Raf1 {[%emt 0:04:59]} Rd8 {[%emt 0:00:19]} 18. Qe2 {[%emt 0:10:04]} Nf6 {[%emt 0:05:15] [#]} (18... c6 $11) 19. Nd2 {[%emt 0:01:30]} ({White should try} 19. Rxf6 $1 $14 gxf6 20. Rf3) 19... d5 $11 {[%emt 0:02:25]} 20. exd5 {[%emt 0:04:30]} exd4 {[%emt 0:01:24]} 21. exd4 {[%emt 0:00:36]} Nexd5 {[%emt 0:00:04]} 22. Nxd5 {[%emt 0:00:09]} (22. Nc4 $5 {[%cal Rc3d5]}) 22... Rxd5 {[%emt 0:00:07]} 23. Qc4 {[%emt 0:00:35][%cal Of3f6] And now Rxf6! would win.} c6 {[%emt 0:00:59]} 24. Rb3 {[%emt 0:00:27]} Rb5 {[%emt 0:00:51]} 25. Nf3 {[%emt 0:00:05][%cal Bd2f3,Bf3e5,Be5d3,Bd3c5][%mdl 32]} Nd5 {[%emt 0:00:39]} 26. Ne5 {[%emt 0:00:10]} Qe4 {[%emt 0:00:00] Strongly threatening ...Rxb3.} 27. Rxb5 {[%emt 0:01:01]} axb5 {[%emt 0:00:54]} 28. Qd3 {[%emt 0:00:07]} Qxd3 {[%emt 0:00:09]} 29. Nxd3 {[%emt 0:00:01][%mdl 4096] Endgame KRN-KRN} Ra8 {[%emt 0:00:01]} 30. Ra1 {[%emt 0:00:24]} Kf8 {[%emt 0:00:27]} 31. Kf2 {[%emt 0:00:05]} Ke7 {[%emt 0:00:05]} 32. Nc5 {[%emt 0:00:06]} b6 {[%emt 0:00:26] [#]} 33. axb6 {[%emt 0:00:02]} Nxb6 {[%emt 0:00:01]} (33... Rxa1 $2 34. b7 Kf6 35. b8=Q $18) 34. Rxa8 {[%emt 0:00:11]} Nxa8 {[%emt 0:00:01] KN-KN} 35. Nd3 {[%emt 0:00:01]} Kd6 {[%emt 0:00:08]} 36. b3 {[%emt 0:00:29][%cal Bb2b3,Bb3c4,Bc4c5][%mdl 32]} Nb6 {[%emt 0:00:02]} 37. Kf3 {[%emt 0:00:02]} Nd7 {[%emt 0:00:08]} 38. c4 {[%emt 0:00:11]} bxc4 $1 {[%emt 0:00:14]} 39. bxc4 {[%emt 0:00:01]} c5 {[%emt 0:00:17]} 40. Ke3 {[%emt 0:00:11]} cxd4+ {[%emt 0:00:33]} 41. Kxd4 {[%emt 0:00:02]} Nb8 {[%emt 0:00:10]} 42. c5+ {[%emt 0:00:04]} Ke6 {[%emt 0:00:01]} 43. Nb4 {[%emt 0:00:05]} g5 {[%emt 0:00:10]} 44. Kc4 {[%emt 0:00:02]} f5 {[%emt 0:00:09]} 45. c6 {[%emt 0:00:36] Intending c7 and mate.} Kd6 {[%emt 0:00:09]} 46. Kb5 {[%emt 0:00:02]} g4 {[%emt 0:00:11]} 47. hxg4 {[%emt 0:00:25]} fxg4 {[%emt 0:00:01]} 48. g3 {[%emt 0:00:24]} h5 {[%emt 0:00:14]} 49. Kb6 $2 {[%emt 0:00:13][%mdl 8192] [#]} (49. c7 $11 Kxc7 50. Nd5+ Kd8 51. Nf4) 49... h4 $2 {[%emt 0:00:06]} ({Black should play} 49... Nxc6 $1 $19 {[%mdl 512]} 50. Nd3 (50. Nxc6 Kd5) 50... Ne7) 50. c7 {[%emt 0:00:09] The position is equal.} Nd7+ {[%emt 0:00:05]} 51. Kb7 {[%emt 0:00:01]} Nc5+ {[%emt 0:00:05]} 52. Kb8 {[%emt 0:00:05]} Nd7+ {[%emt 0:00:04]} 53. Kb7 {[%emt 0:00:21]} Nc5+ {[%emt 0:00:01]} 54. Kb8 {[%emt 0:00:05]} Nd7+ {[%emt 0:00:01] Weighted Error Value: White=0.22 (precise) /Black=0.17 (very precise)} 1/2-1/2

[Event "FIDE WTC Prel-B 2022"]
[Site "Jerusalem"]
[Date "2022.11.20"]
[Round "1.23"]
[White "Mamedov, Rauf"]
[Black "Vokhidov, Shamsiddin"]
[Result "1-0"]
[ECO "B51"]
[WhiteElo "2646"]
[BlackElo "2568"]
[Annotator "TA"]
[PlyCount "65"]
[EventDate "2022.11.20"]
[EventType "team-tourn"]
[EventCountry "ISR"]
[SourceTitle "playchess.com"]
[Source "ChessBase"]
[SourceQuality "1"]
[WhiteTeam "Azerbaijan"]
[BlackTeam "Uzbekistan"]
[WhiteTeamCountry "AZE"]
[BlackTeamCountry "UZB"]
[TimeControl "2700+10"]

{[%evp 12,65,0,7,5,0,6,3,7,0,2,1,12,6,14,-18,0,0,0,-43,-22,-18,-25,-24,-21,-47,-47,-43,-25,-43,-35,-53,-35,-37,-25,-34,8,0,56,0,42,46,84,0,0,0,22,14,13,21,15,27,373,364,29981,29971]} 1. e4 {[%emt 0:00:06]} c5 {[%emt 0:00:02]} 2. Nf3 {[%emt 0:00:02]} d6 {[%emt 0:00:02]} 3. Bb5+ {[%emt 0:00:03]} Nd7 {[%emt 0:00:03]} 4. c3 {[%emt 0:00:01]} Ngf6 {[%emt 0:00:22]} 5. Qe2 {[%emt 0:00:02]} a6 {[%emt 0:01:14]} 6. Ba4 {[%emt 0:00:01]} b5 {[%emt 0:01:02]} 7. Bc2 {[%emt 0:00:15]} Bb7 {[%emt 0:00:13] B51: Sicilian: Moscow Variation (3 Bb5+) without 3...Bd7.} 8. d4 {[%emt 0:00:01]} e6 {[%emt 0:01:57]} 9. a4 {[%emt 0:00:09]} Be7 {[%emt 0:00:53] The position is equal.} 10. e5 {[%emt 0:00:24]} dxe5 {[%emt 0:00:34]} 11. dxe5 {[%emt 0:00:01]} Nd5 {[%emt 0:00:48]} 12. O-O {[%emt 0:00:05] [#]} Qb6 $146 {[%emt 0:03:47]} ({Predecessor:} 12... c4 13. Na3 O-O 14. h4 Qb6 15. Rd1 Bc5 16. Nd4 Rfe8 17. f4 f6 18. Kh1 Bxd4 19. Rxd4 {0-1 (65) Hoppe,A-Kaiser,C freechess.de 2019}) 13. Nbd2 {[%emt 0:13:49]} Nf4 {[%emt 0:01:40]} 14. Qe3 {[%emt 0:00:05]} Nd5 {[%emt 0:01:23]} 15. Qe1 {[%emt 0:00:23]} Qc7 {[%emt 0:00:20]} (15... c4 {with more complications.} 16. Nd4 Nb4 17. Be4 Nd3) 16. axb5 {[%emt 0:07:10]} (16. Nb3 {is interesting.} N5b6 17. axb5 axb5 18. Rxa8+ Bxa8 19. Qe2) 16... axb5 {[%emt 0:00:03]} 17. Rxa8+ {[%emt 0:00:01]} Bxa8 {[%emt 0:00:02]} 18. c4 {[%emt 0:00:08]} bxc4 {[%emt 0:04:26]} 19. Nxc4 {[%emt 0:00:03]} N5b6 {[%emt 0:01:48]} 20. Nxb6 {[%emt 0:02:37]} Nxb6 {[%emt 0:00:13]} 21. Qe2 {[%emt 0:00:59]} O-O {[%emt 0:00:34]} 22. Ng5 {[%emt 0:01:56]} g6 {[%emt 0:00:34]} 23. h4 {[%emt 0:00:32][%cal Og5h7]} Bd5 {[%emt 0:03:00]} 24. Re1 {[%emt 0:01:45][%cal Og5h7] Nxh7! is the strong threat.} Ra8 {[%emt 0:07:01] [#]} ({Better is} 24... Bxg5 $11 25. Bxg5 Ra8) 25. h5 {[%emt 0:02:21]} (25. Nxh7 $1 $14 Kxh7 (25... Bxh4 26. Qg4) 26. Qh5+ Kg7 27. Qh6+ Kg8 28. Bxg6 fxg6 29. Qxg6+ Kh8 30. Qh5+ Kg8 31. Re3 (31. Qg6+ Kh8 $16)) 25... Bf8 {[%emt 0:01:22]} (25... Bxg5 $5 26. Bxg5 Qb7 $11) 26. Qg4 {[%emt 0:01:20][%cal Og5h7] Strongly threatening Nxh7!} Ra1 {[%emt 0:02:07]} 27. Bd2 {[%emt 0:12:51]} (27. hxg6 $16 hxg6 28. Bxg6 $1 fxg6 29. Nxe6 Bxe6 30. Qxg6+ (30. Qxe6+ Kh7 $11) 30... Kh8 31. Qxe6) 27... Rxe1+ $11 {[%emt 0:00:44]} 28. Bxe1 {[%emt 0:00:01] Black must now prevent Ba5.} Nc4 {[%emt 0:04:25] Prevents Ba5.} (28... Qxe5 $2 29. Bc3 Qc7 {[#]} 30. Nxh7 $1 $18 {[%mdl 512]}) 29. Bc3 $36 {[%emt 0:00:04][%cal Og5h7][%mdl 2048] White fights for an advantage.} Nxe5 {[%emt 0:02:02] [#]} 30. hxg6 $1 {[%emt 0:01:28]} fxg6 {[%emt 0:04:20]} 31. Qh3 {[%emt 0:00:02] And now Bxe5 would win.} h5 $2 {[%emt 0:02:28][%mdl 8192]} (31... h6 $1 $11 {and Black has nothing to worry.} 32. Nxe6 Qd7) 32. Bxg6 $18 {[%emt 0:00:54]} ({Weaker is} 32. Nxe6 Qd7 $16) 32... Qg7 {[%emt 0:00:33]} (32... Nxg6 $18 33. Qxh5 e5) 33. Bh7+ {[%emt 0:00:03] Weighted Error Value: White=0.15 (very precise) /Black=0.50} 1-0

[Event "FIDE WTC Prel-B 2022"]
[Site "Jerusalem"]
[Date "2022.11.20"]
[Round "1.24"]
[White "Vakhidov, Jakhongir"]
[Black "Suleymanli, Aydin"]
[Result "1-0"]
[ECO "A23"]
[WhiteElo "2607"]
[BlackElo "2543"]
[Annotator "TA"]
[PlyCount "105"]
[EventDate "2022.11.20"]
[EventType "team-tourn"]
[EventCountry "ISR"]
[SourceTitle "playchess.com"]
[Source "ChessBase"]
[SourceQuality "1"]
[WhiteTeam "Uzbekistan"]
[BlackTeam "Azerbaijan"]
[WhiteTeamCountry "UZB"]
[BlackTeamCountry "AZE"]
[TimeControl "2700+10"]

{[%evp 9,105,-8,22,16,18,16,17,11,20,8,14,17,36,33,69,36,39,30,31,17,18,18,14,35,36,27,43,22,25,29,29,35,77,90,85,53,52,57,58,69,76,70,79,32,40,43,52,48,60,41,56,47,68,42,42,37,47,32,34,18,20,0,0,-1,91,92,79,85,91,91,87,87,89,87,158,133,156,123,125,112,130,135,195,187,159,155,251,241,392,368,455,446,508,437,761,441,669,487]} 1. c4 {[%emt 0:00:07]} e5 {[%emt 0:00:03]} 2. g3 {[%emt 0:02:42]} Nf6 {[%emt 0:00:10]} 3. Bg2 {[%emt 0:00:02]} Bc5 {[%emt 0:00:13]} 4. d3 {[%emt 0:00:02]} c6 {[%emt 0:01:18]} 5. Nc3 {[%emt 0:00:53]} O-O {[%emt 0:00:19]} 6. Nf3 {[%emt 0:00:02] A23: English Opening: 1...e5 2 Nc3 Nf6 3 g3 c6.} d6 {[%emt 0:00:16]} 7. O-O {[%emt 0:00:03]} Re8 {[%emt 0:02:05]} 8. d4 $5 {[%emt 0:05:39][%mdl 4] The position is equal. Exploring less charted territory.} exd4 {[%emt 0:00:42]} 9. Nxd4 {[%emt 0:00:02]} a5 {[%emt 0:00:01]} 10. b3 {[%emt 0:04:50]} Nbd7 {[%emt 0:02:18] [#]} 11. Na4 $146 {[%emt 0:00:39]} ({Predecessor:} 11. Bb2 Ne5 12. h3 h5 13. e3 h4 14. g4 Nfxg4 15. hxg4 Bxg4 16. f3 Bd7 17. Qd2 {0-1 (28) Vrolijk,L (2462)-Van Foreest,J (2632) Amstelveen 2019}) 11... Ne5 {[%emt 0:03:19]} 12. Bb2 {[%emt 0:05:37]} Ba7 {[%emt 0:01:49]} 13. Qc2 {[%emt 0:00:19]} d5 {[%emt 0:02:49]} 14. Rad1 {[%emt 0:05:30]} Qe7 {[%emt 0:03:26]} 15. cxd5 {[%emt 0:01:00]} Nxd5 {[%emt 0:00:45]} 16. Nc3 {[%emt 0:05:33]} Nb4 {[%emt 0:12:36]} 17. Qb1 {[%emt 0:01:25]} Bg4 {[%emt 0:03:06]} 18. h3 {[%emt 0:02:33]} Rad8 {[%emt 0:01:40]} 19. Nf5 {[%emt 0:01:52]} Bxf5 {[%emt 0:00:18]} 20. Qxf5 {[%emt 0:00:02]} Qe6 {[%emt 0:02:11]} 21. Qxe6 {[%emt 0:05:35]} fxe6 {[%emt 0:00:15]} 22. Be4 {[%emt 0:00:12]} Rf8 {[%emt 0:02:07]} 23. a3 {[%emt 0:02:37]} Nd5 {[%emt 0:01:18]} 24. Bc2 {[%emt 0:00:30] Strongly threatening Nxd5. A strong pair of Bishops.} Nd7 {[%emt 0:03:01]} 25. Ne4 {[%emt 0:00:02]} N7f6 {[%emt 0:02:28] [#]} 26. Nxf6+ {[%emt 0:01:09]} ({Better is} 26. Ng5 $1 $16 {[%cal Rg5e6]}) 26... Nxf6 {[%emt 0:00:06]} 27. Bd3 {[%emt 0:00:27]} Kf7 {[%emt 0:00:40]} 28. Kg2 {[%emt 0:00:03]} Rd5 {[%emt 0:00:17]} 29. Bc4 {[%emt 0:00:02]} Rxd1 {[%emt 0:00:07]} 30. Rxd1 {[%emt 0:00:01]} Ke7 {[%emt 0:00:02]} 31. e3 {[%emt 0:00:24] White is more active.} Bc5 {[%emt 0:00:00]} 32. Rd2 {[%emt 0:00:14]} g6 {[%emt 0:00:28]} 33. Rc2 {[%emt 0:00:01][%cal Oc4a6]} Bd6 {[%emt 0:00:01]} 34. Be2 {[%emt 0:00:27]} Ne4 {[%emt 0:00:17]} 35. Bf3 {[%emt 0:00:02]} Nc5 {[%emt 0:00:02]} 36. Rc3 {[%emt 0:00:16]} Be5 {[%emt 0:00:25]} (36... Kd7 $11) 37. Rxc5 $16 {[%emt 0:00:01]} Bxb2 {[%emt 0:00:01]} 38. Rxa5 {[%emt 0:00:02][%mdl 4096] Endgame KRB-KRB} Kd6 {[%emt 0:00:05]} 39. b4 {[%emt 0:00:06]} Kc7 {[%emt 0:00:23]} 40. h4 {[%emt 0:00:10]} Rd8 {[%emt 0:00:11]} 41. Be4 {[%emt 0:00:04]} Rd2 {[%emt 0:00:08]} (41... Rd1 $142) 42. h5 {[%emt 0:00:08]} Bc1 {[%emt 0:00:11]} 43. hxg6 {[%emt 0:00:32]} hxg6 {[%emt 0:00:01]} 44. Bxg6 {[%emt 0:00:01]} Ra2 {[%emt 0:00:02][%csl LRa3,LRe3]} 45. Re5 {[%emt 0:00:26]} Bxa3 {[%emt 0:00:25]} (45... Kd6 $16 46. Re4 Bxa3) 46. Rxe6 $18 {[%emt 0:00:14]} ({Don't play} 46. Ra5 $6 Ra1 47. g4 Kd6) 46... Bxb4 {[%emt 0:00:02]} 47. g4 {[%emt 0:00:04][%cal Bg3g4,Bg4g5][%mdl 32]} Ra8 {[%emt 0:00:20]} (47... Kd7 $16 48. Rf6 Be7 49. Bf5+ Kc7) 48. g5 {[%emt 0:00:06]} Bd6 $2 {[%emt 0:00:11]} (48... Rf8 {is a better defense.} 49. Bb1 Rd8) 49. f4 {[%emt 0:00:15]} b5 {[%emt 0:00:08]} 50. Bf7 {[%emt 0:00:09] White is clearly winning.} b4 {[%emt 0:00:09]} 51. Re4 {[%emt 0:00:05]} Rf8 {[%emt 0:00:12]} (51... Bf8 $142 52. Bc4 Kd8) 52. Bb3 {[%emt 0:00:08] [#] Kf3 is the strong threat.} Kd7 {[%emt 0:00:10]} (52... Ra8 $142 53. g6 Bf8) 53. Kf3 {[%emt 0:00:03] Weighted Error Value: White=0.15 (very precise) /Black=0.27 (precise)} 1-0